[Event "Titled Tuesday Blitz June 6 Early 2023"]
[White "mohsengabr2002"]
[Black "Tomaszewski, Kacper"]
[BlackFideId "1127373"]
[WhiteElo "2242"]
[BlackElo "2211"]
[Result "0-1"]
[Round "6"]
[TimeControl "180+2"]
[Date "2023.06.06"]
[WhiteClock "0:01:33"]
[BlackClock "0:01:38"]
[Board "140"]

1. e4 {[%clk 0:03:00]}  d6 {[%clk 0:02:53]} 2. d4 {[%clk 0:02:59]}  Nf6 {[%clk 0:02:54]} 3. Nc3 {[%clk 0:02:59]}  e5 {[%clk 0:02:54]} 4. Nge2 {[%clk 0:02:56]}  Nc6 {[%clk 0:02:53]} 5. d5 {[%clk 0:02:54]}  Ne7 {[%clk 0:02:51]} 6. Bg5 {[%clk 0:02:54]}  Ng6 {[%clk 0:02:50]} 7. Bxf6 {[%clk 0:02:51]}  Qxf6 {[%clk 0:02:50]} 8. g3 {[%clk 0:02:51]}  Be7 {[%clk 0:02:49]} 9. Bg2 {[%clk 0:02:51]}  O-O {[%clk 0:02:49]} 10. h4 {[%clk 0:02:50]}  Bd8 {[%clk 0:02:46]} 11. h5 {[%clk 0:02:50]}  Nh8 {[%clk 0:02:46]} 12. h6 {[%clk 0:02:49]}  g6 {[%clk 0:02:45]} 13. Qd2 {[%clk 0:02:47]}  c5 {[%clk 0:02:36]} 14. Bh3 {[%clk 0:02:39]}  a6 {[%clk 0:02:13]} 15. Bxc8 {[%clk 0:02:38]}  Rxc8 {[%clk 0:02:14]} 16. a4 {[%clk 0:02:38]}  Ba5 {[%clk 0:02:12]} 17. Kf1 {[%clk 0:02:37]}  Qe7 {[%clk 0:02:09]} 18. Kg2 {[%clk 0:02:36]}  f5 {[%clk 0:02:09]} 19. f3 {[%clk 0:02:34]}  fxe4 {[%clk 0:02:07]} 20. fxe4 {[%clk 0:02:33]}  Nf7 {[%clk 0:02:08]} 21. Qe3 {[%clk 0:02:32]}  Qg5 {[%clk 0:02:03]} 22. Qxg5 {[%clk 0:02:28]}  Nxg5 {[%clk 0:02:04]} 23. Raf1 {[%clk 0:02:28]}  Rxf1 {[%clk 0:02:02]} 24. Rxf1 {[%clk 0:02:28]}  Bxc3 {[%clk 0:02:01]} 25. Nxc3 {[%clk 0:02:27]}  Rf8 {[%clk 0:02:02]} 26. Rxf8+ {[%clk 0:02:26]}  Kxf8 {[%clk 0:02:03]} 27. a5 {[%clk 0:02:19]}  Nf7 {[%clk 0:02:02]} 28. Nd1 {[%clk 0:01:54]}  Nxh6 {[%clk 0:02:02]} 29. Ne3 {[%clk 0:01:51]}  Nf7 {[%clk 0:02:01]} 30. c3 {[%clk 0:01:52]}  Ke7 {[%clk 0:02:01]} 31. b4 {[%clk 0:01:52]}  cxb4 {[%clk 0:02:00]} 32. cxb4 {[%clk 0:01:52]}  Ng5 {[%clk 0:01:59]} 33. b5 {[%clk 0:01:50]}  Nxe4 {[%clk 0:01:57]} 34. bxa6 {[%clk 0:01:49]}  bxa6 {[%clk 0:01:58]} 35. Nc2 {[%clk 0:01:48]}  Nc5 {[%clk 0:01:54]} 36. Nb4 {[%clk 0:01:49]}  Kf6 {[%clk 0:01:53]} 37. Kf3 {[%clk 0:01:50]}  e4+ {[%clk 0:01:53]} 38. Kf4 {[%clk 0:01:49]}  g5+ {[%clk 0:01:53]} 39. Kg4 {[%clk 0:01:48]}  Kg6 {[%clk 0:01:51]} 40. Kh3 {[%clk 0:01:41]}  h5 {[%clk 0:01:51]} 41. Kg2 {[%clk 0:01:40]}  Kf5 {[%clk 0:01:51]} 42. Kf2 {[%clk 0:01:41]}  h4 {[%clk 0:01:48]} 43. gxh4 {[%clk 0:01:41]}  gxh4 {[%clk 0:01:48]} 44. Nc2 {[%clk 0:01:41]}  Kf4 {[%clk 0:01:45]} 45. Nd4 {[%clk 0:01:40]}  Ke5 {[%clk 0:01:39]} 46. Ne6 {[%clk 0:01:33]}  Nxe6 {[%clk 0:01:38]} 0-1


[Site "https://www.chess.com"]

[Event "Titled Tuesday Blitz June 6 Early 2023"]
[White "Dushyant Sharma"]
[Black "Samaganova, Aleksandra"]
[WhiteFideId "25065130"]
[BlackFideId "13800221"]
[WhiteElo "2198"]
[BlackElo "1858"]
[Result "1-0"]
[Round "6"]
[TimeControl "180+2"]
[Date "2023.06.06"]
[WhiteClock "0:01:07"]
[BlackClock "0:00:04"]
[Board "141"]

1. e4 {[%clk 0:03:00]}  c5 {[%clk 0:02:59]} 2. Nf3 {[%clk 0:03:00]}  e6 {[%clk 0:02:59]} 3. d4 {[%clk 0:03:01]}  cxd4 {[%clk 0:02:59]} 4. Nxd4 {[%clk 0:03:02]}  a6 {[%clk 0:03:00]} 5. Nc3 {[%clk 0:03:02]}  Qc7 {[%clk 0:03:00]} 6. f4 {[%clk 0:03:02]}  b5 {[%clk 0:02:57]} 7. Bd3 {[%clk 0:03:00]}  Bb7 {[%clk 0:02:55]} 8. Be3 {[%clk 0:02:58]}  Nf6 {[%clk 0:02:54]} 9. a3 {[%clk 0:02:53]}  Nc6 {[%clk 0:02:47]} 10. e5 {[%clk 0:02:48]}  Nxd4 {[%clk 0:02:13]} 11. exf6 {[%clk 0:02:46]}  Nc6 {[%clk 0:02:05]} 12. fxg7 {[%clk 0:02:45]}  Bxg7 {[%clk 0:02:05]} 13. Qd2 {[%clk 0:02:36]}  d5 {[%clk 0:01:57]} 14. Bc5 {[%clk 0:02:23]}  Ne7 {[%clk 0:01:42]} 15. b4 {[%clk 0:02:16]}  Ng6 {[%clk 0:01:12]} 16. O-O {[%clk 0:02:06]}  f5 {[%clk 0:00:37]} 17. Rae1 {[%clk 0:02:00]}  Kf7 {[%clk 0:00:37]} 18. Ne2 {[%clk 0:01:53]}  Rhe8 {[%clk 0:00:31]} 19. Nd4 {[%clk 0:01:51]}  Bc8 {[%clk 0:00:17]} 20. g3 {[%clk 0:01:28]}  Bd7 {[%clk 0:00:16]} 21. Nf3 {[%clk 0:01:28]}  Kg8 {[%clk 0:00:15]} 22. Re2 {[%clk 0:01:23]}  a5 {[%clk 0:00:13]} 23. Rfe1 {[%clk 0:01:23]}  axb4 {[%clk 0:00:12]} 24. axb4 {[%clk 0:01:24]}  Qc6 {[%clk 0:00:08]} 25. h4 {[%clk 0:01:21]}  Qb7 {[%clk 0:00:05]} 26. h5 {[%clk 0:01:21]}  Nf8 {[%clk 0:00:05]} 27. Ng5 {[%clk 0:01:18]}  h6 {[%clk 0:00:03]} 28. Bxf8 {[%clk 0:01:19]}  Bxf8 {[%clk 0:00:03]} 29. Nxe6 {[%clk 0:01:19]}  Bxe6 {[%clk 0:00:03]} 30. Rxe6 {[%clk 0:01:20]}  Rxe6 {[%clk 0:00:03]} 31. Rxe6 {[%clk 0:01:21]}  Qf7 {[%clk 0:00:02]} 32. Re5 {[%clk 0:01:15]}  Kh7 {[%clk 0:00:01]} 33. Rxf5 {[%clk 0:01:14]}  Qa7+ {[%clk 0:00:02]} 34. Kg2 {[%clk 0:01:13]}  Kh8 {[%clk 0:00:02]} 35. Rxd5 {[%clk 0:01:10]}  Bg7 {[%clk 0:00:02]} 36. Rxb5 {[%clk 0:01:09]}  Qd7 {[%clk 0:00:02]} 37. Qf2 {[%clk 0:01:07]}  Rc8 {[%clk 0:00:01]} 38. Qf3 {[%clk 0:01:07]}  Qc6 {[%clk 0:00:02]} 39. Qxc6 {[%clk 0:01:07]}  Rxc6 {[%clk 0:00:02]} 40. Rb8+ {[%clk 0:01:07]}  Bf8 {[%clk 0:00:03]} 41. Rxf8+ {[%clk 0:01:07]}  Kg7 {[%clk 0:00:04]} 1-0


[Site "https://www.chess.com"]

[Event "Titled Tuesday Blitz June 6 Early 2023"]
[White "Horak, Martin"]
[Black "campochess"]
[WhiteFideId "367095"]
[WhiteElo "2091"]
[BlackElo "2166"]
[Result "1-0"]
[Round "6"]
[TimeControl "180+2"]
[Date "2023.06.06"]
[WhiteClock "0:00:49"]
[BlackClock "0:01:33"]
[Board "142"]

1. e4 {[%clk 0:03:00]}  c5 {[%clk 0:02:57]} 2. Nf3 {[%clk 0:03:01]}  Nc6 {[%clk 0:02:56]} 3. Bb5 {[%clk 0:02:57]}  e6 {[%clk 0:02:55]} 4. O-O {[%clk 0:02:57]}  Nge7 {[%clk 0:02:55]} 5. Re1 {[%clk 0:02:58]}  a6 {[%clk 0:02:56]} 6. Bf1 {[%clk 0:02:58]}  d5 {[%clk 0:02:52]} 7. exd5 {[%clk 0:02:59]}  Nxd5 {[%clk 0:02:52]} 8. d4 {[%clk 0:02:59]}  cxd4 {[%clk 0:02:51]} 9. Nxd4 {[%clk 0:03:00]}  Nxd4 {[%clk 0:02:51]} 10. Qxd4 {[%clk 0:03:01]}  Be7 {[%clk 0:02:48]} 11. Qxg7 {[%clk 0:02:40]}  Bf6 {[%clk 0:02:47]} 12. Qg3 {[%clk 0:02:36]}  Bd7 {[%clk 0:02:41]} 13. a3 {[%clk 0:02:29]}  Qc7 {[%clk 0:02:33]} 14. c4 {[%clk 0:02:16]}  Qxg3 {[%clk 0:02:32]} 15. hxg3 {[%clk 0:02:17]}  Ne7 {[%clk 0:02:28]} 16. Nd2 {[%clk 0:02:11]}  O-O {[%clk 0:02:24]} 17. Ne4 {[%clk 0:02:10]}  Bg7 {[%clk 0:02:24]} 18. Bg5 {[%clk 0:02:04]}  Nf5 {[%clk 0:02:23]} 19. Nf6+ {[%clk 0:02:02]}  Bxf6 {[%clk 0:02:21]} 20. Bxf6 {[%clk 0:02:03]}  Rfc8 {[%clk 0:02:20]} 21. Rad1 {[%clk 0:01:57]}  Ba4 {[%clk 0:02:16]} 22. Rd2 {[%clk 0:01:53]}  Bb3 {[%clk 0:02:15]} 23. g4 {[%clk 0:01:47]}  Ng7 {[%clk 0:02:04]} 24. Re5 {[%clk 0:01:16]}  h6 {[%clk 0:02:03]} 25. g5 {[%clk 0:01:12]}  Ne8 {[%clk 0:02:01]} 26. Rd4 {[%clk 0:00:59]}  Nxf6 {[%clk 0:01:53]} 27. gxf6 {[%clk 0:00:59]}  Kh7 {[%clk 0:01:53]} 28. Bd3+ {[%clk 0:00:51]}  Kh8 {[%clk 0:01:46]} 29. Rh5 {[%clk 0:00:49]}  e5 {[%clk 0:01:33]} 30. Rxh6+ {[%clk 0:00:48]}  Kg8 {[%clk 0:01:33]} 31. Rg4+ {[%clk 0:00:49]} 1-0


[Site "https://www.chess.com"]

[Event "Titled Tuesday Blitz June 6 Early 2023"]
[White "Torres Dominguez, David"]
[Black "Dinu, Dumitru-Daniel"]
[WhiteFideId "2220857"]
[BlackFideId "1208403"]
[WhiteElo "1999"]
[BlackElo "2240"]
[Result "1-0"]
[Round "6"]
[TimeControl "180+2"]
[Date "2023.06.06"]
[WhiteClock "0:00:11"]
[BlackClock "0:00:02"]
[Board "144"]

1. e4 {[%clk 0:02:59]}  c6 {[%clk 0:02:59]} 2. Nf3 {[%clk 0:02:58]}  d5 {[%clk 0:03:00]} 3. d3 {[%clk 0:02:59]}  dxe4 {[%clk 0:02:57]} 4. dxe4 {[%clk 0:03:00]}  Qxd1+ {[%clk 0:02:58]} 5. Kxd1 {[%clk 0:03:00]}  Nf6 {[%clk 0:02:57]} 6. Nfd2 {[%clk 0:03:00]}  g5 {[%clk 0:02:58]} 7. f3 {[%clk 0:02:57]}  h5 {[%clk 0:02:58]} 8. Nb3 {[%clk 0:02:50]}  Bh6 {[%clk 0:02:57]} 9. a4 {[%clk 0:02:39]}  g4 {[%clk 0:02:56]} 10. Bc4 {[%clk 0:02:33]}  Bxc1 {[%clk 0:02:55]} 11. Nxc1 {[%clk 0:02:31]}  Nbd7 {[%clk 0:02:56]} 12. Nd3 {[%clk 0:02:28]}  Nb6 {[%clk 0:02:53]} 13. Bb3 {[%clk 0:02:26]}  a5 {[%clk 0:02:48]} 14. Ke2 {[%clk 0:02:24]}  Rg8 {[%clk 0:02:37]} 15. Kf2 {[%clk 0:02:24]}  Bd7 {[%clk 0:02:24]} 16. Nd2 {[%clk 0:02:19]}  Rg7 {[%clk 0:02:11]} 17. Ne5 {[%clk 0:02:00]}  Be6 {[%clk 0:02:10]} 18. Bxe6 {[%clk 0:01:59]}  fxe6 {[%clk 0:02:11]} 19. f4 {[%clk 0:01:57]}  O-O-O {[%clk 0:02:09]} 20. Ke3 {[%clk 0:01:37]}  Rxd2 {[%clk 0:01:48]} 21. Kxd2 {[%clk 0:01:36]}  Nxe4+ {[%clk 0:01:47]} 22. Ke3 {[%clk 0:01:30]}  Nd6 {[%clk 0:01:46]} 23. b3 {[%clk 0:01:28]}  Nf5+ {[%clk 0:01:45]} 24. Kf2 {[%clk 0:01:23]}  Nd5 {[%clk 0:01:38]} 25. g3 {[%clk 0:01:19]}  Nc3 {[%clk 0:01:28]} 26. Rae1 {[%clk 0:01:15]}  Rg8 {[%clk 0:01:26]} 27. Nc4 {[%clk 0:01:12]}  Rd8 {[%clk 0:00:53]} 28. Rxe6 {[%clk 0:01:09]}  Nd1+ {[%clk 0:00:27]} 29. Ke2 {[%clk 0:00:48]}  Nd4+ {[%clk 0:00:22]} 30. Kxd1 {[%clk 0:00:48]}  Nxe6+ {[%clk 0:00:23]} 31. Kc1 {[%clk 0:00:46]}  Nd4 {[%clk 0:00:16]} 32. Re1 {[%clk 0:00:39]}  Rd7 {[%clk 0:00:11]} 33. Nxa5 {[%clk 0:00:37]}  Nf3 {[%clk 0:00:10]} 34. Re2 {[%clk 0:00:36]}  h4 {[%clk 0:00:09]} 35. gxh4 {[%clk 0:00:34]}  Rd4 {[%clk 0:00:06]} 36. Rxe7 {[%clk 0:00:26]}  Rxf4 {[%clk 0:00:06]} 37. Nc4 {[%clk 0:00:21]}  Nxh2 {[%clk 0:00:04]} 38. Rg7 {[%clk 0:00:20]}  Nf3 {[%clk 0:00:03]} 39. h5 {[%clk 0:00:17]}  Nd4 {[%clk 0:00:02]} 40. h6 {[%clk 0:00:15]}  Rf1+ {[%clk 0:00:02]} 41. Kd2 {[%clk 0:00:13]}  Rh1 {[%clk 0:00:03]} 42. h7 {[%clk 0:00:12]}  Nf3+ {[%clk 0:00:03]} 43. Ke3 {[%clk 0:00:12]}  Ng5 {[%clk 0:00:02]} 44. Rg8+ {[%clk 0:00:11]} 1-0


[Site "https://www.chess.com"]

[Event "Titled Tuesday Blitz June 6 Early 2023"]
[White "Baraeva, Irina"]
[Black "Toczek, Grzegorz"]
[WhiteFideId "24142565"]
[BlackFideId "1106457"]
[WhiteElo "2085"]
[BlackElo "2093"]
[Result "1-0"]
[Round "6"]
[TimeControl "180+2"]
[Date "2023.06.06"]
[WhiteClock "0:00:23"]
[BlackClock "0:00:26"]
[Board "146"]

1. d4 {[%clk 0:02:45]}  c6 {[%clk 0:03:00]} 2. c4 {[%clk 0:02:44]}  d6 {[%clk 0:02:59]} 3. Nc3 {[%clk 0:02:43]}  Nf6 {[%clk 0:02:57]} 4. e4 {[%clk 0:02:42]}  e5 {[%clk 0:02:58]} 5. Nf3 {[%clk 0:02:38]}  Nbd7 {[%clk 0:02:57]} 6. Be2 {[%clk 0:02:37]}  Be7 {[%clk 0:02:56]} 7. O-O {[%clk 0:02:36]}  O-O {[%clk 0:02:57]} 8. Be3 {[%clk 0:02:30]}  Re8 {[%clk 0:02:54]} 9. Qc2 {[%clk 0:02:28]}  exd4 {[%clk 0:02:54]} 10. Nxd4 {[%clk 0:02:28]}  Nc5 {[%clk 0:02:53]} 11. f3 {[%clk 0:02:24]}  Bf8 {[%clk 0:02:48]} 12. Rad1 {[%clk 0:02:01]}  d5 {[%clk 0:02:40]} 13. cxd5 {[%clk 0:01:54]}  cxd5 {[%clk 0:02:39]} 14. Ndb5 {[%clk 0:01:51]}  a6 {[%clk 0:02:29]} 15. Nxd5 {[%clk 0:01:39]}  axb5 {[%clk 0:02:20]} 16. Bxc5 {[%clk 0:01:35]}  Bxc5+ {[%clk 0:02:19]} 17. Qxc5 {[%clk 0:01:30]}  Nxd5 {[%clk 0:02:20]} 18. Rxd5 {[%clk 0:01:29]}  Qa5 {[%clk 0:02:01]} 19. Bxb5 {[%clk 0:01:25]}  Rf8 {[%clk 0:01:45]} 20. a4 {[%clk 0:01:21]}  Be6 {[%clk 0:01:45]} 21. Rd6 {[%clk 0:01:13]}  Rac8 {[%clk 0:01:46]} 22. Qd4 {[%clk 0:01:10]}  Rfd8 {[%clk 0:01:34]} 23. Rd1 {[%clk 0:00:57]}  Rxd6 {[%clk 0:01:34]} 24. Qxd6 {[%clk 0:00:56]}  h5 {[%clk 0:01:33]} 25. b4 {[%clk 0:00:55]}  Qa7+ {[%clk 0:01:31]} 26. Qd4 {[%clk 0:00:44]}  Qb8 {[%clk 0:01:31]} 27. a5 {[%clk 0:00:37]}  Qf4 {[%clk 0:01:22]} 28. e5 {[%clk 0:00:34]}  Qg5 {[%clk 0:01:11]} 29. Bf1 {[%clk 0:00:33]}  h4 {[%clk 0:01:10]} 30. f4 {[%clk 0:00:29]}  Qg4 {[%clk 0:01:09]} 31. h3 {[%clk 0:00:29]}  Qg3 {[%clk 0:01:08]} 32. Qf2 {[%clk 0:00:28]}  Qc3 {[%clk 0:01:08]} 33. f5 {[%clk 0:00:27]}  Bb3 {[%clk 0:01:06]} 34. Re1 {[%clk 0:00:26]}  Re8 {[%clk 0:01:00]} 35. f6 {[%clk 0:00:26]}  Rxe5 {[%clk 0:00:58]} 36. Rxe5 {[%clk 0:00:26]}  Qxe5 {[%clk 0:00:59]} 37. fxg7 {[%clk 0:00:27]}  Qg5 {[%clk 0:00:54]} 38. Qd4 {[%clk 0:00:26]}  Be6 {[%clk 0:00:54]} 39. b5 {[%clk 0:00:24]}  Bxh3 {[%clk 0:00:44]} 40. a6 {[%clk 0:00:24]}  bxa6 {[%clk 0:00:44]} 41. bxa6 {[%clk 0:00:24]}  Be6 {[%clk 0:00:42]} 42. a7 {[%clk 0:00:23]}  Bd5 {[%clk 0:00:42]} 43. Kf2 {[%clk 0:00:18]}  Qg3+ {[%clk 0:00:41]} 44. Ke2 {[%clk 0:00:18]}  Bxg2 {[%clk 0:00:39]} 45. Bxg2 {[%clk 0:00:18]}  Qxg2+ {[%clk 0:00:39]} 46. Kd3 {[%clk 0:00:18]}  f6 {[%clk 0:00:30]} 47. Qd8+ {[%clk 0:00:18]}  Kxg7 {[%clk 0:00:31]} 48. a8=Q {[%clk 0:00:18]}  Qf1+ {[%clk 0:00:29]} 49. Kd4 {[%clk 0:00:18]}  Qd1+ {[%clk 0:00:29]} 50. Kc5 {[%clk 0:00:19]}  Qc2+ {[%clk 0:00:29]} 51. Kd6 {[%clk 0:00:19]}  Qd2+ {[%clk 0:00:27]} 52. Qd5 {[%clk 0:00:19]}  Qf4+ {[%clk 0:00:25]} 53. Ke7 {[%clk 0:00:19]}  Qe3+ {[%clk 0:00:25]} 54. Qe6 {[%clk 0:00:20]}  Qa7+ {[%clk 0:00:24]} 55. Qdd7 {[%clk 0:00:20]}  Qa3+ {[%clk 0:00:25]} 56. Ke8+ {[%clk 0:00:20]}  Kg6 {[%clk 0:00:25]} 57. Qdf7+ {[%clk 0:00:21]}  Kg5 {[%clk 0:00:25]} 58. Qexf6+ {[%clk 0:00:21]}  Kg4 {[%clk 0:00:25]} 59. Q7g6+ {[%clk 0:00:21]}  Kh3 {[%clk 0:00:26]} 60. Qff5+ {[%clk 0:00:22]}  Kh2 {[%clk 0:00:26]} 61. Qf2+ {[%clk 0:00:22]}  Kh3 {[%clk 0:00:26]} 62. Qfg2# {[%clk 0:00:23]} 1-0


[Site "https://www.chess.com"]

[Event "Titled Tuesday Blitz June 6 Early 2023"]
[White "Jiganchine, Roman"]
[Black "Bas Mas, Jose Joaquin"]
[WhiteFideId "2603667"]
[BlackFideId "22219064"]
[WhiteElo "2296"]
[BlackElo "2212"]
[Result "0-1"]
[Round "6"]
[TimeControl "180+2"]
[Date "2023.06.06"]
[WhiteClock "0:00:05"]
[BlackClock "0:01:45"]
[Board "147"]

1. e4 {[%clk 0:02:59]}  e6 {[%clk 0:03:00]} 2. d4 {[%clk 0:02:58]}  d5 {[%clk 0:03:01]} 3. Nd2 {[%clk 0:02:58]}  Nf6 {[%clk 0:03:00]} 4. Bd3 {[%clk 0:02:58]}  c5 {[%clk 0:02:59]} 5. c3 {[%clk 0:02:58]}  Nc6 {[%clk 0:02:58]} 6. Ngf3 {[%clk 0:02:56]}  cxd4 {[%clk 0:02:54]} 7. cxd4 {[%clk 0:02:55]}  Qb6 {[%clk 0:02:53]} 8. O-O {[%clk 0:02:54]}  dxe4 {[%clk 0:02:47]} 9. Nxe4 {[%clk 0:02:54]}  Be7 {[%clk 0:02:48]} 10. Re1 {[%clk 0:02:24]}  O-O {[%clk 0:02:44]} 11. h4 {[%clk 0:02:12]}  h6 {[%clk 0:02:42]} 12. a3 {[%clk 0:01:54]}  Rd8 {[%clk 0:02:40]} 13. Be3 {[%clk 0:01:25]}  Nd5 {[%clk 0:02:39]} 14. Qe2 {[%clk 0:01:09]}  Nxe3 {[%clk 0:02:29]} 15. fxe3 {[%clk 0:01:08]}  Bd7 {[%clk 0:02:29]} 16. Rad1 {[%clk 0:01:03]}  a5 {[%clk 0:02:24]} 17. Bb1 {[%clk 0:01:03]}  Be8 {[%clk 0:02:19]} 18. Ng3 {[%clk 0:00:57]}  Rac8 {[%clk 0:02:13]} 19. Qd3 {[%clk 0:00:54]}  f5 {[%clk 0:02:13]} 20. Ba2 {[%clk 0:00:44]}  Bf7 {[%clk 0:02:10]} 21. Rf1 {[%clk 0:00:35]}  Qxb2 {[%clk 0:02:05]} 22. Rf2 {[%clk 0:00:20]}  Qxa3 {[%clk 0:02:04]} 23. Qb5 {[%clk 0:00:19]}  Qb4 {[%clk 0:01:59]} 24. Qf1 {[%clk 0:00:19]}  Qd6 {[%clk 0:01:51]} 25. Rb2 {[%clk 0:00:14]}  Qxg3 {[%clk 0:01:49]} 26. Rxb7 {[%clk 0:00:12]}  Rc7 {[%clk 0:01:49]} 27. Rxc7 {[%clk 0:00:10]}  Qxc7 {[%clk 0:01:50]} 28. d5 {[%clk 0:00:09]}  exd5 {[%clk 0:01:49]} 29. Nd4 {[%clk 0:00:08]}  Nxd4 {[%clk 0:01:47]} 30. Rxd4 {[%clk 0:00:08]}  Bf6 {[%clk 0:01:48]} 31. Rd1 {[%clk 0:00:06]}  d4 {[%clk 0:01:47]} 32. Rc1 {[%clk 0:00:06]}  Qe7 {[%clk 0:01:44]} 33. Bxf7+ {[%clk 0:00:05]}  Qxf7 {[%clk 0:01:45]} 0-1


[Site "https://www.chess.com"]

[Event "Titled Tuesday Blitz June 6 Early 2023"]
[White "Khromkin, Andrey"]
[Black "Chuemsakul, Sarocha"]
[WhiteFideId "4154126"]
[BlackFideId "6203710"]
[WhiteElo "2449"]
[BlackElo "1686"]
[Result "1-0"]
[Round "6"]
[TimeControl "180+2"]
[Date "2023.06.06"]
[WhiteClock "0:02:35"]
[BlackClock "0:01:59"]
[Board "148"]

1. d4 {[%clk 0:03:00]}  Nf6 {[%clk 0:03:00]} 2. c4 {[%clk 0:03:01]}  g6 {[%clk 0:03:00]} 3. Nf3 {[%clk 0:03:02]}  Bg7 {[%clk 0:03:01]} 4. Nc3 {[%clk 0:03:02]}  d6 {[%clk 0:03:01]} 5. g3 {[%clk 0:03:03]}  O-O {[%clk 0:03:02]} 6. Bg2 {[%clk 0:03:04]}  c5 {[%clk 0:03:03]} 7. O-O {[%clk 0:03:05]}  Nc6 {[%clk 0:03:03]} 8. dxc5 {[%clk 0:03:04]}  dxc5 {[%clk 0:03:03]} 9. Be3 {[%clk 0:03:05]}  Nd7 {[%clk 0:03:01]} 10. Qc1 {[%clk 0:03:05]}  e6 {[%clk 0:02:56]} 11. Rd1 {[%clk 0:03:03]}  Qe7 {[%clk 0:02:53]} 12. Bh6 {[%clk 0:03:02]}  Rb8 {[%clk 0:02:50]} 13. Bxg7 {[%clk 0:03:02]}  Kxg7 {[%clk 0:02:50]} 14. Ne4 {[%clk 0:03:03]}  Nf6 {[%clk 0:02:38]} 15. Qc3 {[%clk 0:03:00]}  h6 {[%clk 0:02:23]} 16. e3 {[%clk 0:02:53]}  b6 {[%clk 0:02:21]} 17. Rd2 {[%clk 0:02:38]}  Bb7 {[%clk 0:02:16]} 18. Rd7 {[%clk 0:02:34]}  Qxd7 {[%clk 0:02:02]} 19. Nxf6 {[%clk 0:02:34]}  Qe7 {[%clk 0:02:02]} 20. Nh5+ {[%clk 0:02:34]}  Kh7 {[%clk 0:01:59]} 21. Qg7# {[%clk 0:02:35]} 1-0


[Site "https://www.chess.com"]

[Event "Titled Tuesday Blitz June 6 Early 2023"]
[White "Balla, Tamas-Kristof"]
[Black "Palacio,Igor Da Paz"]
[WhiteFideId "1208497"]
[BlackFideId "2121140"]
[WhiteElo "2334"]
[BlackElo "2126"]
[Result "1-0"]
[Round "6"]
[TimeControl "180+2"]
[Date "2023.06.06"]
[WhiteClock "0:00:03"]
[BlackClock "0:00:02"]
[Board "149"]

1. e4 {[%clk 0:03:00]}  c5 {[%clk 0:02:59]} 2. Nf3 {[%clk 0:03:01]}  d6 {[%clk 0:02:59]} 3. d4 {[%clk 0:03:00]}  cxd4 {[%clk 0:03:00]} 4. Qxd4 {[%clk 0:03:01]}  Bd7 {[%clk 0:02:58]} 5. c4 {[%clk 0:02:58]}  Nc6 {[%clk 0:02:56]} 6. Qe3 {[%clk 0:02:58]}  Nf6 {[%clk 0:02:53]} 7. h3 {[%clk 0:02:58]}  e6 {[%clk 0:02:52]} 8. Nc3 {[%clk 0:02:57]}  Be7 {[%clk 0:02:52]} 9. Be2 {[%clk 0:02:57]}  O-O {[%clk 0:02:51]} 10. O-O {[%clk 0:02:58]}  a6 {[%clk 0:02:50]} 11. Rd1 {[%clk 0:02:58]}  Qc7 {[%clk 0:02:49]} 12. b3 {[%clk 0:02:58]}  Rfd8 {[%clk 0:02:43]} 13. Bb2 {[%clk 0:02:58]}  Rac8 {[%clk 0:02:43]} 14. Rac1 {[%clk 0:02:58]}  Qb8 {[%clk 0:02:41]} 15. a3 {[%clk 0:02:55]}  Na5 {[%clk 0:02:37]} 16. Na2 {[%clk 0:02:25]}  b5 {[%clk 0:02:31]} 17. cxb5 {[%clk 0:02:13]}  Bxb5 {[%clk 0:02:30]} 18. Rxc8 {[%clk 0:02:07]}  Rxc8 {[%clk 0:02:29]} 19. Nb4 {[%clk 0:01:41]}  Bxe2 {[%clk 0:02:24]} 20. Qxe2 {[%clk 0:01:41]}  Nxb3 {[%clk 0:02:23]} 21. Nxa6 {[%clk 0:01:41]}  Qb7 {[%clk 0:02:05]} 22. e5 {[%clk 0:01:34]}  dxe5 {[%clk 0:02:03]} 23. Nxe5 {[%clk 0:01:23]}  h6 {[%clk 0:01:47]} 24. Nb4 {[%clk 0:01:18]}  Nc5 {[%clk 0:01:33]} 25. Ng4 {[%clk 0:01:07]}  Ncd7 {[%clk 0:00:47]} 26. Nd3 {[%clk 0:00:38]}  Nxg4 {[%clk 0:00:36]} 27. Qxg4 {[%clk 0:00:37]}  Bf6 {[%clk 0:00:32]} 28. Bxf6 {[%clk 0:00:19]}  Nxf6 {[%clk 0:00:32]} 29. Qg3 {[%clk 0:00:15]}  Qb3 {[%clk 0:00:21]} 30. Qf3 {[%clk 0:00:11]}  Rc3 {[%clk 0:00:09]} 31. Qe2 {[%clk 0:00:11]}  Qxa3 {[%clk 0:00:08]} 32. Ne5 {[%clk 0:00:09]}  Rc1 {[%clk 0:00:07]} 33. Nf3 {[%clk 0:00:02]}  Qa1 {[%clk 0:00:06]} 34. Rxc1 {[%clk 0:00:02]}  Qxc1+ {[%clk 0:00:07]} 35. Kh2 {[%clk 0:00:03]}  Qc7+ {[%clk 0:00:07]} 36. g3 {[%clk 0:00:04]}  Qc6 {[%clk 0:00:06]} 37. Ne5 {[%clk 0:00:04]}  Qe4 {[%clk 0:00:06]} 38. Qb2 {[%clk 0:00:03]}  Qf5 {[%clk 0:00:04]} 39. Nc4 {[%clk 0:00:02]}  Nd5 {[%clk 0:00:03]} 40. Nd6 {[%clk 0:00:03]}  Qf3 {[%clk 0:00:03]} 41. Ne8 {[%clk 0:00:03]}  Qf5 {[%clk 0:00:02]} 42. Qxg7# {[%clk 0:00:03]} 1-0


[Site "https://www.chess.com"]